[Event "Live Chess"]
[Site "Chess.com"]
[Date "2024.06.02"]
[Round "-"]
[White "matt1979"]
[Black "AndyJWise"]
[Result "1-0"]
[WhiteElo "1408"]
[BlackElo "1031"]
[TimeControl "300"]
[EndTime "2:48:53 PDT"]
[Termination "matt1979 won by resignation"]

1. f4 {[%clk 0:04:59.2]} 1... Nf6 {[%clk 0:04:52.2]} 2. Nf3 {[%clk 0:04:57.8]}
2... d6 {[%clk 0:04:49.2]} 3. Nc3 {[%clk 0:04:52.8]} 3... Bg4 {[%clk 0:04:47.5]}
4. e4 {[%clk 0:04:49.6]} 4... e5 {[%clk 0:04:43.5]} 5. f5 {[%clk 0:04:45.4]}
5... Nc6 {[%clk 0:04:38.2]} 6. Bb5 {[%clk 0:04:40.5]} 6... a6 {[%clk 0:04:34.6]}
7. Bxc6+ {[%clk 0:04:39.3]} 7... bxc6 {[%clk 0:04:32.8]} 8. O-O {[%clk
0:04:38.2]} 8... d5 {[%clk 0:04:31.4]} 9. d3 {[%clk 0:04:29.4]} 9... dxe4 {[%clk
0:04:26.9]} 10. dxe4 {[%clk 0:04:18.9]} 10... Qxd1 {[%clk 0:04:17.3]} 11. Rxd1
{[%clk 0:04:12.7]} 11... Bxf3 {[%clk 0:04:14.2]} 12. gxf3 {[%clk 0:04:12]} 12...
Bc5+ {[%clk 0:04:12]} 13. Kg2 {[%clk 0:04:09.2]} 13... Ke7 {[%clk 0:04:11.2]}
14. Bg5 {[%clk 0:04:05]} 14... h6 {[%clk 0:04:09]} 15. Bh4 {[%clk 0:04:03.4]}
15... g5 {[%clk 0:04:02.4]} 16. fxg6 {[%clk 0:04:00.7]} 16... fxg6 {[%clk
0:04:00.8]} 17. Rd3 {[%clk 0:03:55.9]} 17... g5 {[%clk 0:03:58.6]} 18. Bg3
{[%clk 0:03:53.9]} 18... Ke6 {[%clk 0:03:57.1]} 19. Rad1 {[%clk 0:03:50.4]}
19... Nh5 {[%clk 0:03:51.3]} 20. Rd7 {[%clk 0:03:42.9]} 20... Nf4+ {[%clk
0:03:49.5]} 21. Bxf4 {[%clk 0:03:37.6]} 21... gxf4 {[%clk 0:03:48.2]} 22. Rxc7
{[%clk 0:03:35.4]} 22... Rag8+ {[%clk 0:03:38.1]} 23. Kh3 {[%clk 0:03:33]} 23...
Rg6 {[%clk 0:03:20.8]} 24. Rxc6+ {[%clk 0:03:31.3]} 24... Kf7 {[%clk 0:03:15.3]}
25. Rxc5 {[%clk 0:03:22.1]} 25... Rhg8 {[%clk 0:03:13.7]} 26. Rc7+ {[%clk
0:03:20.8]} 26... Ke8 {[%clk 0:03:10.3]} 27. Rc8+ {[%clk 0:03:19.1]} 27... Kf7
{[%clk 0:03:07.8]} 28. Rd7+ {[%clk 0:03:12.2]} 28... Ke6 {[%clk 0:03:05.6]} 29.
Rxg8 {[%clk 0:03:06.5]} 29... Rxg8 {[%clk 0:02:52.8]} 30. Ra7 {[%clk 0:03:02.6]}
1-0

[Event "Live Chess"]
[Site "Chess.com"]
[Date "2024.06.02"]
[Round "-"]
[White "defenderalist"]
[Black "DJ_Lambton"]
[Result "0-1"]
[WhiteElo "1522"]
[BlackElo "1786"]
[TimeControl "300"]
[EndTime "2:49:08 PDT"]
[Termination "DJ_Lambton won by resignation"]

1. e4 {[%clk 0:04:59.7]} 1... c6 {[%clk 0:04:59.3]} 2. d4 {[%clk 0:04:58.2]}
2... d5 {[%clk 0:04:58.8]} 3. Nc3 {[%clk 0:04:58.1]} 3... dxe4 {[%clk
0:04:57.7]} 4. Nxe4 {[%clk 0:04:57.7]} 4... Bf5 {[%clk 0:04:57.5]} 5. Ng3 {[%clk
0:04:53.2]} 5... Bg6 {[%clk 0:04:56.5]} 6. h4 {[%clk 0:04:52.2]} 6... h6 {[%clk
0:04:55.5]} 7. Nf3 {[%clk 0:04:50.4]} 7... Nd7 {[%clk 0:04:54.5]} 8. Bc4 {[%clk
0:04:48.9]} 8... e6 {[%clk 0:04:53.5]} 9. h5 {[%clk 0:04:44.5]} 9... Bh7 {[%clk
0:04:52.4]} 10. Be3 {[%clk 0:04:40.3]} 10... Ngf6 {[%clk 0:04:49]} 11. Qd2
{[%clk 0:04:34.8]} 11... Be7 {[%clk 0:04:44.2]} 12. O-O-O {[%clk 0:04:31.7]}
12... Qc7 {[%clk 0:04:42.3]} 13. Bf4 {[%clk 0:04:25.6]} 13... Bd6 {[%clk
0:04:39.9]} 14. Ne5 {[%clk 0:04:23.4]} 14... Nd5 {[%clk 0:04:34.7]} 15. Bxd5
{[%clk 0:04:02.1]} 15... cxd5 {[%clk 0:04:32.7]} 16. Ne2 {[%clk 0:03:57.8]}
16... Nxe5 {[%clk 0:04:28.7]} 17. dxe5 {[%clk 0:03:54.4]} 17... Bxe5 {[%clk
0:04:27.9]} 18. Bxe5 {[%clk 0:03:52.8]} 18... Qxe5 {[%clk 0:04:27.2]} 19. f4
{[%clk 0:03:48.8]} 19... Qc7 {[%clk 0:04:24.9]} 20. g4 {[%clk 0:03:38.7]} 20...
Rc8 {[%clk 0:04:23.4]} 21. c3 {[%clk 0:03:34.4]} 21... Be4 {[%clk 0:04:18.9]}
22. Rhe1 {[%clk 0:03:29.8]} 22... Qa5 {[%clk 0:04:17]} 23. a3 {[%clk 0:03:25.7]}
23... O-O {[%clk 0:04:15]} 24. g5 {[%clk 0:03:24.1]} 24... hxg5 {[%clk
0:04:12.9]} 25. fxg5 {[%clk 0:03:22.7]} 25... Rc4 {[%clk 0:04:06.8]} 26. g6
{[%clk 0:03:07.7]} 26... f5 {[%clk 0:03:51.4]} 27. h6 {[%clk 0:03:02.1]} 27...
Rfc8 {[%clk 0:03:47.7]} 28. hxg7 {[%clk 0:02:46.9]} 28... Kxg7 {[%clk
0:03:42.8]} 29. Rh1 {[%clk 0:02:44.7]} 29... Kxg6 {[%clk 0:02:59.4]} 30. Qh6+
{[%clk 0:02:40.4]} 30... Kf7 {[%clk 0:02:58.2]} 31. Qh7+ {[%clk 0:02:30]} 31...
Kf6 {[%clk 0:02:57]} 32. Rh6+ {[%clk 0:02:18]} 32... Ke5 {[%clk 0:02:56]} 33.
Qg7+ {[%clk 0:02:14.2]} 33... Kd6 {[%clk 0:02:52.1]} 34. Qg3+ {[%clk 0:02:02.6]}
34... Kc6 {[%clk 0:02:37.6]} 35. Rxe6+ {[%clk 0:01:57.5]} 35... Kb5 {[%clk
0:02:36.1]} 36. Nd4+ {[%clk 0:01:52.5]} 36... Rxd4 {[%clk 0:02:31.5]} 37. Rxd4
{[%clk 0:01:46.3]} 37... Rc4 {[%clk 0:02:22]} 38. Rxc4 {[%clk 0:01:14.6]} 38...
Kxc4 {[%clk 0:02:17.9]} 39. Qc7+ {[%clk 0:01:09.9]} 39... Qxc7 {[%clk
0:02:16.3]} 0-1

[Event "Live Chess"]
[Site "Chess.com"]
[Date "2024.06.02"]
[Round "-"]
[White "upoe610"]
[Black "booktrunk"]
[Result "1-0"]
[WhiteElo "2147"]
[BlackElo "1508"]
[TimeControl "300"]
[EndTime "2:49:11 PDT"]
[Termination "upoe610 won by resignation"]

1. c4 {[%clk 0:04:46.4]} 1... e6 {[%clk 0:04:59.9]} 2. g3 {[%clk 0:04:45.4]}
2... Nf6 {[%clk 0:04:58.7]} 3. Bg2 {[%clk 0:04:44.5]} 3... h6 {[%clk 0:04:53.8]}
4. Nf3 {[%clk 0:04:41.3]} 4... Bc5 {[%clk 0:04:49.5]} 5. d4 {[%clk 0:04:40.1]}
5... Bb6 {[%clk 0:04:47.6]} 6. Nc3 {[%clk 0:04:39.1]} 6... d6 {[%clk 0:04:45.7]}
7. e4 {[%clk 0:04:37.1]} 7... Ba5 {[%clk 0:04:44.6]} 8. Qd3 {[%clk 0:04:33.3]}
8... Bxc3+ {[%clk 0:04:38.5]} 9. bxc3 {[%clk 0:04:32]} 9... Bd7 {[%clk
0:04:35.2]} 10. Rb1 {[%clk 0:04:29.6]} 10... Nc6 {[%clk 0:04:33.2]} 11. O-O
{[%clk 0:04:27.3]} 11... b6 {[%clk 0:04:30.9]} 12. Re1 {[%clk 0:04:17.1]} 12...
Qe7 {[%clk 0:04:26.2]} 13. d5 {[%clk 0:04:13.7]} 13... Ne5 {[%clk 0:04:23.4]}
14. Nxe5 {[%clk 0:04:12.6]} 14... dxe5 {[%clk 0:04:22.5]} 15. f4 {[%clk
0:04:09.8]} 15... exf4 {[%clk 0:04:19.4]} 16. Bxf4 {[%clk 0:04:08.1]} 16... e5
{[%clk 0:04:12.3]} 17. Be3 {[%clk 0:04:07.1]} 17... O-O {[%clk 0:04:09.9]} 18.
Rf1 {[%clk 0:04:04.2]} 18... Ng4 {[%clk 0:04:06.3]} 19. Bd2 {[%clk 0:04:00.7]}
19... c6 {[%clk 0:03:55.4]} 20. Qf3 {[%clk 0:03:58.8]} 20... cxd5 {[%clk
0:03:50.5]} 21. exd5 {[%clk 0:03:53.6]} 21... e4 {[%clk 0:03:44.5]} 22. Qxe4
{[%clk 0:03:47.8]} 22... Qc5+ {[%clk 0:03:40.1]} 23. Qd4 {[%clk 0:03:44.8]}
23... Qxd4+ {[%clk 0:03:33]} 24. cxd4 {[%clk 0:03:44.7]} 24... Rae8 {[%clk
0:03:27.5]} 25. h3 {[%clk 0:03:43.3]} 25... Ne3 {[%clk 0:03:24.1]} 26. Bxe3
{[%clk 0:03:41.3]} 26... Rxe3 {[%clk 0:03:22.9]} 27. Rf3 {[%clk 0:03:40.1]}
27... Re2 {[%clk 0:03:20.9]} 28. Rf2 {[%clk 0:03:39]} 28... Re3 {[%clk
0:03:19.4]} 29. Kh2 {[%clk 0:03:38.4]} 29... f6 {[%clk 0:03:15.7]} 30. c5 {[%clk
0:03:37.3]} 30... bxc5 {[%clk 0:03:13.9]} 31. dxc5 {[%clk 0:03:37.2]} 31... Rc8
{[%clk 0:03:11.5]} 32. c6 {[%clk 0:03:31.6]} 32... Bf5 {[%clk 0:03:09.7]} 33.
Rxf5 {[%clk 0:03:26.7]} 1-0

[Event "Live Chess"]
[Site "Chess.com"]
[Date "2024.06.02"]
[Round "-"]
[White "oscalik"]
[Black "JohanKjeldahl"]
[Result "1-0"]
[WhiteElo "2247"]
[BlackElo "1808"]
[TimeControl "300"]
[EndTime "2:49:33 PDT"]
[Termination "oscalik won by resignation"]

1. e4 {[%clk 0:04:58.2]} 1... c5 {[%clk 0:04:58.4]} 2. Nc3 {[%clk 0:04:56.5]}
2... e6 {[%clk 0:04:57.3]} 3. f4 {[%clk 0:04:55.2]} 3... Nc6 {[%clk 0:04:56.5]}
4. Nf3 {[%clk 0:04:54.5]} 4... a6 {[%clk 0:04:55.5]} 5. d4 {[%clk 0:04:53.1]}
5... cxd4 {[%clk 0:04:53.5]} 6. Nxd4 {[%clk 0:04:53]} 6... Qc7 {[%clk
0:04:52.4]} 7. Be3 {[%clk 0:04:51.4]} 7... b5 {[%clk 0:04:51.3]} 8. a3 {[%clk
0:04:50.3]} 8... Bb7 {[%clk 0:04:48.7]} 9. Bd3 {[%clk 0:04:48.6]} 9... Nge7
{[%clk 0:04:42.5]} 10. Qe2 {[%clk 0:04:46.7]} 10... g6 {[%clk 0:04:38.9]} 11.
Rd1 {[%clk 0:04:38.5]} 11... Bg7 {[%clk 0:04:37.1]} 12. Nf3 {[%clk 0:04:36.3]}
12... Rd8 {[%clk 0:04:29.3]} 13. e5 {[%clk 0:04:34.9]} 13... O-O {[%clk
0:04:23.7]} 14. Ne4 {[%clk 0:04:32.8]} 14... d5 {[%clk 0:04:20.3]} 15. exd6
{[%clk 0:04:29.7]} 15... Qa5+ {[%clk 0:04:13.3]} 16. c3 {[%clk 0:04:26.9]} 16...
Nd5 {[%clk 0:04:08.5]} 17. Bd2 {[%clk 0:04:18.5]} 17... Qb6 {[%clk 0:04:03.1]}
18. Qf2 {[%clk 0:04:07.4]} 18... Qxf2+ {[%clk 0:03:56.6]} 19. Kxf2 {[%clk
0:04:07.3]} 19... h6 {[%clk 0:03:47.9]} 20. Rhe1 {[%clk 0:04:04.4]} 20... Bc8
{[%clk 0:03:31.3]} 21. b3 {[%clk 0:04:02.1]} 21... f5 {[%clk 0:03:27.8]} 22. Nc5
{[%clk 0:03:53.7]} 22... Rxd6 {[%clk 0:03:26.4]} 23. c4 {[%clk 0:03:45.8]} 23...
bxc4 {[%clk 0:03:16.1]} 24. Bxc4 {[%clk 0:03:45]} 24... Nd8 {[%clk 0:03:00.5]}
25. Ne5 {[%clk 0:03:40.7]} 25... Nb6 {[%clk 0:02:46.6]} 26. Bb4 {[%clk
0:03:24.1]} 26... Rxd1 {[%clk 0:02:42.8]} 27. Rxd1 {[%clk 0:03:22.8]} 27... Bxe5
{[%clk 0:02:40.3]} 28. fxe5 {[%clk 0:03:18.9]} 28... Nxc4 {[%clk 0:02:38.7]} 29.
bxc4 {[%clk 0:03:17.2]} 29... Nc6 {[%clk 0:02:37.2]} 30. Nxe6 {[%clk 0:03:09.5]}
30... Bxe6 {[%clk 0:02:28]} 31. Bxf8 {[%clk 0:03:08.3]} 31... Kxf8 {[%clk
0:02:25.4]} 32. Rd6 {[%clk 0:03:07.3]} 32... Nxe5 {[%clk 0:02:15.3]} 33. Rxe6
{[%clk 0:03:02]} 33... Nxc4 {[%clk 0:02:14.2]} 34. Rxa6 {[%clk 0:02:59.9]} 34...
Kf7 {[%clk 0:02:10.9]} 35. a4 {[%clk 0:02:56.8]} 1-0

[Event "Live Chess"]
[Site "Chess.com"]
[Date "2024.06.02"]
[Round "-"]
[White "Delacorta"]
[Black "Ninifu"]
[Result "0-1"]
[WhiteElo "1517"]
[BlackElo "2016"]
[TimeControl "300"]
[EndTime "2:49:46 PDT"]
[Termination "Ninifu won by resignation"]

1. d4 {[%clk 0:04:57.9]} 1... Nf6 {[%clk 0:04:58.5]} 2. Nf3 {[%clk 0:04:57]}
2... g6 {[%clk 0:04:57.3]} 3. e3 {[%clk 0:04:55.2]} 3... Bg7 {[%clk 0:04:56.6]}
4. Be2 {[%clk 0:04:54.3]} 4... O-O {[%clk 0:04:56]} 5. c4 {[%clk 0:04:53.2]}
5... d6 {[%clk 0:04:55.3]} 6. Nc3 {[%clk 0:04:52.1]} 6... Nbd7 {[%clk
0:04:54.6]} 7. Bd2 {[%clk 0:04:46.9]} 7... e5 {[%clk 0:04:53.7]} 8. dxe5 {[%clk
0:04:45.5]} 8... dxe5 {[%clk 0:04:52.2]} 9. Qc2 {[%clk 0:04:39.8]} 9... Re8
{[%clk 0:04:51.1]} 10. Ne4 {[%clk 0:04:24.2]} 10... Nxe4 {[%clk 0:04:46]} 11.
Qxe4 {[%clk 0:04:23]} 11... Nc5 {[%clk 0:04:45]} 12. Qc2 {[%clk 0:04:20.6]}
12... Bf5 {[%clk 0:04:42.2]} 13. Qc1 {[%clk 0:04:03.7]} 13... Bd3 {[%clk
0:04:36.4]} 14. b4 {[%clk 0:03:51.2]} 14... Bxe2 {[%clk 0:04:34.4]} 15. Kxe2
{[%clk 0:03:48.7]} 15... Qd3+ {[%clk 0:04:12.7]} 16. Ke1 {[%clk 0:03:27.4]}
16... Ne4 {[%clk 0:04:05.6]} 17. Qb2 {[%clk 0:02:43]} 17... Rad8 {[%clk
0:03:59.9]} 18. Rd1 {[%clk 0:02:32.8]} 18... Qxc4 {[%clk 0:02:39.8]} 19. Qb1
{[%clk 0:02:27.3]} 19... Nc3 {[%clk 0:02:12]} 20. Bxc3 {[%clk 0:02:12.3]} 20...
Qxc3+ {[%clk 0:02:09.5]} 21. Nd2 {[%clk 0:01:52]} 21... e4 {[%clk 0:01:59.2]}
22. Kf1 {[%clk 0:00:57.9]} 22... Rxd2 {[%clk 0:01:56.7]} 0-1

[Event "Live Chess"]
[Site "Chess.com"]
[Date "2024.06.02"]
[Round "-"]
[White "Mikhail_Golubev"]
[Black "bill77678"]
[Result "1-0"]
[WhiteElo "2512"]
[BlackElo "1845"]
[TimeControl "300"]
[EndTime "2:50:10 PDT"]
[Termination "Mikhail_Golubev won by resignation"]

1. e4 {[%clk 0:04:57.5]} 1... c6 {[%clk 0:04:58.9]} 2. d4 {[%clk 0:04:54.5]}
2... d5 {[%clk 0:04:58.2]} 3. Nc3 {[%clk 0:04:54.2]} 3... dxe4 {[%clk
0:04:57.4]} 4. Nxe4 {[%clk 0:04:54.1]} 4... Nf6 {[%clk 0:04:56.6]} 5. Ng3 {[%clk
0:04:53.1]} 5... h5 {[%clk 0:04:54.1]} 6. h3 {[%clk 0:04:52.2]} 6... h4 {[%clk
0:04:49.7]} 7. N3e2 {[%clk 0:04:50.8]} 7... Bf5 {[%clk 0:04:46.3]} 8. Nf3 {[%clk
0:04:47.3]} 8... e6 {[%clk 0:04:41.4]} 9. Nc3 {[%clk 0:04:22]} 9... Nd5 {[%clk
0:04:33]} 10. Bd3 {[%clk 0:04:13.7]} 10... Bxd3 {[%clk 0:04:30.7]} 11. Qxd3
{[%clk 0:04:11.8]} 11... Be7 {[%clk 0:04:24.6]} 12. Ne4 {[%clk 0:04:04.9]} 12...
Nd7 {[%clk 0:04:11.8]} 13. O-O {[%clk 0:03:54.2]} 13... Qc7 {[%clk 0:03:41.3]}
14. c4 {[%clk 0:03:35.1]} 14... Nf4 {[%clk 0:03:32.3]} 15. Bxf4 {[%clk
0:03:33.7]} 15... Qxf4 {[%clk 0:03:32.2]} 16. d5 {[%clk 0:03:32.9]} 16... cxd5
{[%clk 0:02:57.6]} 17. cxd5 {[%clk 0:03:30.8]} 17... Ne5 {[%clk 0:02:55.5]} 18.
Nxe5 {[%clk 0:03:19.5]} 18... Qxe5 {[%clk 0:02:54.1]} 19. d6 {[%clk 0:03:10.7]}
19... Rd8 {[%clk 0:02:22.5]} 20. Rad1 {[%clk 0:03:01.2]} 20... O-O {[%clk
0:02:09.8]} 21. dxe7 {[%clk 0:02:58.9]} 1-0

[Event "Live Chess"]
[Site "Chess.com"]
[Date "2024.06.02"]
[Round "-"]
[White "Bradfield133"]
[Black "Zhevzh1k7"]
[Result "1-0"]
[WhiteElo "1869"]
[BlackElo "1107"]
[TimeControl "300"]
[EndTime "2:50:25 PDT"]
[Termination "Bradfield133 won by checkmate"]

1. c4 {[%clk 0:04:57.1]} 1... Nf6 {[%clk 0:04:56.8]} 2. g3 {[%clk 0:04:55.9]}
2... d5 {[%clk 0:04:52.1]} 3. cxd5 {[%clk 0:04:53.9]} 3... Nxd5 {[%clk
0:04:50.6]} 4. Bg2 {[%clk 0:04:52.4]} 4... Nb6 {[%clk 0:04:50]} 5. Nf3 {[%clk
0:04:51.1]} 5... Nc6 {[%clk 0:04:48.9]} 6. O-O {[%clk 0:04:49.8]} 6... Bf5
{[%clk 0:04:47.7]} 7. d3 {[%clk 0:04:48.4]} 7... e6 {[%clk 0:04:46.7]} 8. Nc3
{[%clk 0:04:44.2]} 8... Bc5 {[%clk 0:04:42.5]} 9. a3 {[%clk 0:04:36.9]} 9... O-O
{[%clk 0:04:36.7]} 10. b4 {[%clk 0:04:34.7]} 10... Bd6 {[%clk 0:04:35]} 11. Nb5
{[%clk 0:04:27]} 11... a6 {[%clk 0:04:31]} 12. Nxd6 {[%clk 0:04:24.3]} 12...
Qxd6 {[%clk 0:04:28.9]} 13. Bb2 {[%clk 0:04:19.7]} 13... Rad8 {[%clk 0:04:22.1]}
14. Qc2 {[%clk 0:04:16]} 14... Bg4 {[%clk 0:04:10.4]} 15. Rac1 {[%clk
0:04:11.5]} 15... Bxf3 {[%clk 0:04:06.7]} 16. Bxf3 {[%clk 0:04:09.8]} 16... Nd4
{[%clk 0:04:05.5]} 17. Bxd4 {[%clk 0:04:08]} 17... Qxd4 {[%clk 0:04:02.2]} 18.
Qxc7 {[%clk 0:04:06.4]} 18... Nd5 {[%clk 0:03:55.6]} 19. Qxb7 {[%clk 0:03:58.7]}
19... Ra8 {[%clk 0:03:26.6]} 20. Bxd5 {[%clk 0:03:36.4]} 20... Qxd5 {[%clk
0:03:23.8]} 21. Qxd5 {[%clk 0:03:33.7]} 21... exd5 {[%clk 0:03:23.7]} 22. Rc5
{[%clk 0:03:31.6]} 22... Rfd8 {[%clk 0:03:21.5]} 23. Rfc1 {[%clk 0:03:29.7]}
23... d4 {[%clk 0:03:09.9]} 24. R1c4 {[%clk 0:03:26.3]} 24... f6 {[%clk
0:03:02.7]} 25. Ra5 {[%clk 0:03:21]} 25... Kf7 {[%clk 0:02:59.9]} 26. Rc6 {[%clk
0:03:19.3]} 26... Rdc8 {[%clk 0:02:54.4]} 27. Rcxa6 {[%clk 0:03:09.4]} 27...
Rxa6 {[%clk 0:02:53]} 28. Rxa6 {[%clk 0:03:08.3]} 28... Rc2 {[%clk 0:02:52.4]}
29. Kf1 {[%clk 0:03:05.9]} 29... Kg6 {[%clk 0:02:45.9]} 30. b5 {[%clk
0:03:01.7]} 30... Rb2 {[%clk 0:02:34.5]} 31. b6 {[%clk 0:02:59.2]} 31... Rb5
{[%clk 0:02:27.6]} 32. a4 {[%clk 0:02:57.4]} 32... Rb1+ {[%clk 0:02:19.9]} 33.
Kg2 {[%clk 0:02:55.3]} 33... Rb2 {[%clk 0:02:19.3]} 34. Kf3 {[%clk 0:02:54.2]}
34... h5 {[%clk 0:02:16.1]} 35. a5 {[%clk 0:02:50.5]} 35... Kg5 {[%clk
0:02:13.1]} 36. h4+ {[%clk 0:02:45.9]} 36... Kf5 {[%clk 0:02:10.1]} 37. Ra7
{[%clk 0:02:39.6]} 37... g5 {[%clk 0:02:07.2]} 38. hxg5 {[%clk 0:02:37.1]} 38...
fxg5 {[%clk 0:02:06.2]} 39. Rf7+ {[%clk 0:02:27]} 39... Kg6 {[%clk 0:02:03.3]}
40. Rd7 {[%clk 0:02:22.1]} 40... g4+ {[%clk 0:02:00.3]} 41. Kg2 {[%clk
0:02:20.6]} 41... Rxe2 {[%clk 0:01:56.9]} 42. b7 {[%clk 0:02:15.8]} 42... Rb2
{[%clk 0:01:55.4]} 43. Rd6+ {[%clk 0:02:15.1]} 43... Kf7 {[%clk 0:01:50.4]} 44.
Rb6 {[%clk 0:02:13.9]} 44... Ra2 {[%clk 0:01:43.4]} 45. b8=Q {[%clk 0:02:11.6]}
45... Rxa5 {[%clk 0:01:43]} 46. Qf4+ {[%clk 0:02:09.8]} 46... Ke7 {[%clk
0:01:40.9]} 47. Qc7+ {[%clk 0:02:08.2]} 47... Ke8 {[%clk 0:01:39.3]} 48. Rb8#
{[%clk 0:02:08]} 1-0

[Event "Live Chess"]
[Site "Chess.com"]
[Date "2024.06.02"]
[Round "-"]
[White "Ferrarifan27"]
[Black "dmitro74"]
[Result "1-0"]
[WhiteElo "2140"]
[BlackElo "1727"]
[TimeControl "300"]
[EndTime "2:50:29 PDT"]
[Termination "Ferrarifan27 won by resignation"]

1. e4 {[%clk 0:04:58]} 1... e6 {[%clk 0:04:58.2]} 2. d4 {[%clk 0:04:56.3]} 2...
d5 {[%clk 0:04:57.7]} 3. Nc3 {[%clk 0:04:52.6]} 3... dxe4 {[%clk 0:04:56.6]} 4.
Nxe4 {[%clk 0:04:50.7]} 4... Nd7 {[%clk 0:04:56.2]} 5. Nf3 {[%clk 0:04:46.2]}
5... Ngf6 {[%clk 0:04:55.6]} 6. Bg5 {[%clk 0:04:43.8]} 6... c5 {[%clk
0:04:51.7]} 7. dxc5 {[%clk 0:04:38.5]} 7... Bxc5 {[%clk 0:04:41]} 8. Nxc5 {[%clk
0:04:36.8]} 8... Nxc5 {[%clk 0:04:39.9]} 9. Qxd8+ {[%clk 0:04:35.8]} 9... Kxd8
{[%clk 0:04:38.8]} 10. O-O-O+ {[%clk 0:04:34.1]} 10... Ke7 {[%clk 0:04:36.8]}
11. Bc4 {[%clk 0:04:28.6]} 11... Bd7 {[%clk 0:04:31.9]} 12. Rhe1 {[%clk
0:04:24.6]} 12... Bc6 {[%clk 0:04:24.3]} 13. Re3 {[%clk 0:04:11.7]} 13... Rhd8
{[%clk 0:04:21.5]} 14. Rxd8 {[%clk 0:04:10.4]} 14... Rxd8 {[%clk 0:04:20]} 15.
g3 {[%clk 0:04:08.3]} 15... h6 {[%clk 0:04:17.2]} 16. Bxf6+ {[%clk 0:04:05.9]}
16... gxf6 {[%clk 0:04:16]} 17. Be2 {[%clk 0:03:55.7]} 17... Ne4 {[%clk
0:04:10]} 18. Nh4 {[%clk 0:03:45.5]} 18... Kf8 {[%clk 0:03:49.1]} 19. f3 {[%clk
0:03:42]} 19... Nc5 {[%clk 0:03:22]} 20. f4 {[%clk 0:03:32.9]} 20... f5 {[%clk
0:03:18.4]} 21. Nf3 {[%clk 0:03:29.2]} 21... Ne4 {[%clk 0:02:58.3]} 22. Ne5
{[%clk 0:03:18.1]} 22... Be8 {[%clk 0:02:46.3]} 23. Rd3 {[%clk 0:03:02.1]} 23...
Rxd3 {[%clk 0:02:36.4]} 24. Bxd3 {[%clk 0:03:02]} 24... Nc5 {[%clk 0:02:32.4]}
25. Bf1 {[%clk 0:02:58.4]} 25... f6 {[%clk 0:02:30.6]} 26. Nd3 {[%clk
0:02:56.8]} 26... Nxd3+ {[%clk 0:02:26.7]} 27. Bxd3 {[%clk 0:02:56.7]} 27... Bd7
{[%clk 0:02:23.1]} 28. Kd2 {[%clk 0:02:51.1]} 28... e5 {[%clk 0:02:21.7]} 29.
Ke3 {[%clk 0:02:49.4]} 29... Ke7 {[%clk 0:02:18.3]} 30. Bc4 {[%clk 0:02:46.2]}
30... Kd6 {[%clk 0:02:14.4]} 31. b4 {[%clk 0:02:42]} 31... Bc6 {[%clk
0:02:07.6]} 32. Bd3 {[%clk 0:02:31.4]} 32... b5 {[%clk 0:01:59.7]} 33. Bxf5
{[%clk 0:02:27.4]} 33... Bd5 {[%clk 0:01:50.4]} 34. a3 {[%clk 0:02:25.4]} 34...
Ba2 {[%clk 0:01:40.6]} 35. Bd3 {[%clk 0:02:19.7]} 35... a6 {[%clk 0:01:38.6]}
36. fxe5+ {[%clk 0:02:17.6]} 36... fxe5 {[%clk 0:01:35.3]} 37. Ke4 {[%clk
0:02:16]} 37... Ke6 {[%clk 0:01:27.3]} 38. h4 {[%clk 0:02:08.2]} 38... Bd5+
{[%clk 0:01:24.1]} 39. Ke3 {[%clk 0:02:07.4]} 39... Kf6 {[%clk 0:01:19.2]} 40.
g4 {[%clk 0:02:04.1]} 40... Be6 {[%clk 0:01:16.6]} 41. Kf3 {[%clk 0:01:55.9]}
41... Bd5+ {[%clk 0:01:09.9]} 42. Be4 {[%clk 0:01:54.5]} 42... Ba2 {[%clk
0:01:02.4]} 43. Bb7 {[%clk 0:01:52.9]} 43... Bb1 {[%clk 0:01:01.2]} 44. c3
{[%clk 0:01:49.9]} 44... Bd3 {[%clk 0:00:50.8]} 45. Bxa6 {[%clk 0:01:48.3]}
45... e4+ {[%clk 0:00:47.8]} 46. Kf4 {[%clk 0:01:47.3]} 46... Be2 {[%clk
0:00:43.4]} 47. Bb7 {[%clk 0:01:43.4]} 47... e3 {[%clk 0:00:42]} 48. g5+ {[%clk
0:01:40.6]} 48... hxg5+ {[%clk 0:00:40.5]} 49. hxg5+ {[%clk 0:01:39.9]} 49...
Kg6 {[%clk 0:00:39.2]} 50. Be4+ {[%clk 0:01:37.2]} 50... Kh5 {[%clk 0:00:32.8]}
51. Kxe3 {[%clk 0:01:34.4]} 51... Bc4 {[%clk 0:00:27]} 52. g6 {[%clk 0:01:30.3]}
52... Kg5 {[%clk 0:00:25.5]} 53. Kd4 {[%clk 0:01:28.5]} 53... Kf6 {[%clk
0:00:23.5]} 54. Bd3 {[%clk 0:01:26.7]} 54... Bxd3 {[%clk 0:00:19.5]} 55. Kxd3
{[%clk 0:01:25.6]} 55... Kxg6 {[%clk 0:00:18.9]} 56. c4 {[%clk 0:01:23.9]} 56...
bxc4+ {[%clk 0:00:17.8]} 57. Kxc4 {[%clk 0:01:23.8]} 1-0

[Event "Live Chess"]
[Site "Chess.com"]
[Date "2024.06.02"]
[Round "-"]
[White "Crowded_House"]
[Black "StoreySniper"]
[Result "0-1"]
[WhiteElo "1673"]
[BlackElo "2522"]
[TimeControl "300"]
[EndTime "2:50:29 PDT"]
[Termination "StoreySniper won by checkmate"]

1. d4 {[%clk 0:04:57.8]} 1... Nf6 {[%clk 0:04:58.2]} 2. Bg5 {[%clk 0:04:57.2]}
2... c5 {[%clk 0:04:56.1]} 3. Bxf6 {[%clk 0:04:55.8]} 3... gxf6 {[%clk
0:04:54.8]} 4. c3 {[%clk 0:04:54.8]} 4... Qb6 {[%clk 0:04:53.2]} 5. Qb3 {[%clk
0:04:52.7]} 5... Bh6 {[%clk 0:04:51.2]} 6. Qxb6 {[%clk 0:04:50.9]} 6... axb6
{[%clk 0:04:50.2]} 7. e3 {[%clk 0:04:44.8]} 7... Nc6 {[%clk 0:04:42.1]} 8. Nf3
{[%clk 0:04:42.5]} 8... e5 {[%clk 0:04:35.2]} 9. dxe5 {[%clk 0:04:38.6]} 9...
fxe5 {[%clk 0:04:33.6]} 10. Bd3 {[%clk 0:04:25.2]} 10... d5 {[%clk 0:04:25.7]}
11. Bb5 {[%clk 0:04:18.8]} 11... Bd7 {[%clk 0:04:10]} 12. Bxc6 {[%clk
0:04:16.8]} 12... bxc6 {[%clk 0:04:05.5]} 13. Nxe5 {[%clk 0:04:15.6]} 13... d4
{[%clk 0:03:57.5]} 14. Nxd7 {[%clk 0:04:11.4]} 14... Kxd7 {[%clk 0:03:56.3]} 15.
cxd4 {[%clk 0:04:07]} 15... cxd4 {[%clk 0:03:55.3]} 16. exd4 {[%clk 0:04:02.8]}
16... Bc1 {[%clk 0:03:52]} 17. Nd2 {[%clk 0:03:46.2]} 17... Bxb2 {[%clk
0:03:49.7]} 18. Rb1 {[%clk 0:03:42.3]} 18... Rhe8+ {[%clk 0:03:46]} 19. Kd1
{[%clk 0:03:34]} 19... Bxd4 {[%clk 0:03:43.6]} 20. Nf3 {[%clk 0:03:26.3]} 20...
Bxf2 {[%clk 0:03:36.7]} 21. Ng5 {[%clk 0:03:20.3]} 21... Rxa2 {[%clk 0:03:22.9]}
22. Nxh7 {[%clk 0:03:18.7]} 22... Kc7 {[%clk 0:03:19.1]} 23. Rf1 {[%clk
0:03:11.7]} 23... Rd8+ {[%clk 0:03:17.7]} 24. Kc1 {[%clk 0:03:07.8]} 24... Be3#
{[%clk 0:03:15.7]} 0-1